fUST/lending_fUST_20250801
["ID","MTS","AMOUNT","RATE_DAILY","PERIOD"]
[376528613,1754008239854,-460.0,0.00019178,2]
[376528614,1754008239864,-460.0,0.00019178,2]
[376528615,1754008239874,-460.0,0.00019178,2]
[376528616,1754008239885,-460.0,0.00019178,2]
[376528617,1754008239895,-460.0,0.00019178,2]
[376528618,1754008239905,-460.0,0.00019178,2]
[376528619,1754008239915,-460.0,0.00019178,2]
[376528620,1754008239925,-460.0,0.00019178,2]
[376528621,1754008239936,-460.0,0.00019178,2]
[376528622,1754008239946,-460.0,0.00019178,2]
[376528623,1754008239956,-460.0,0.00019178,2]
[376528624,1754008239966,-460.0,0.00019178,2]
[376528625,1754008239980,-460.0,0.00019178,2]
[376528626,1754008239991,-460.0,0.00019178,2]
[376528627,1754008240001,-460.0,0.00019178,2]
[376528628,1754008240011,-460.0,0.00019178,2]
[376528629,1754008240021,-460.0,0.00019178,2]
[376528630,1754008240032,-589.47,0.00019178,2]
[376528631,1754008240042,-460.0,0.00019178,2]
[376528632,1754008240052,-460.0,0.00019178,2]
[376528633,1754008240062,-460.0,0.00019178,2]
[376528634,1754008240072,-460.0,0.00019178,2]
[376528636,1754008240083,-460.0,0.00019178,2]
[376528638,1754008240093,-460.0,0.00019178,2]
[376528639,1754008240103,-460.0,0.00019178,2]
[376528640,1754008240112,-460.0,0.00019178,2]
[376528641,1754008240122,-191.949549,0.00019178,2]
[376528642,1754008240132,-460.0,0.00019452,2]
[376528643,1754008240142,-460.0,0.00019452,2]
[376528647,1754008240152,-520.65,0.00019452,2]
[376528648,1754008240334,-584.72174384,0.00019452,2]
[376528649,1754008240346,-460.0,0.00019452,2]
[376528650,1754008240357,-460.0,0.00019452,2]
[376528651,1754008240367,-460.0,0.00019452,2]
[376528652,1754008240376,-532.83,0.00019452,2]
[376528653,1754008240385,-460.0,0.00019452,2]
[376528654,1754008240394,-460.0,0.00019452,2]
[376528655,1754008240403,-460.0,0.00019452,2]
[376528656,1754008240412,-429.10597818,0.00019452,2]
[376528657,1754008240421,-460.0,0.00019452,2]
[376528658,1754008240430,-460.0,0.00019452,2]
[376528659,1754008240439,-557.44665211,0.00019452,2]
[376528660,1754008240448,-460.0,0.00019452,2]
[376528661,1754008240457,-460.0,0.00019452,2]
[376528662,1754008240467,-460.0,0.00019452,2]
[376528663,1754008240477,-460.0,0.00019452,2]
[376528664,1754008240486,-460.0,0.00019452,2]
[376528665,1754008240494,-460.0,0.00019452,2]
[376528666,1754008240504,-460.0,0.00019452,2]
[376528667,1754008240513,-460.0,0.00019452,2]
[376528669,1754008240521,-460.0,0.00019452,2]
[376528671,1754008240531,-460.0,0.00019452,2]
[376528673,1754008240539,-460.0,0.00019452,2]
[376528675,1754008240548,-460.0,0.00019452,2]
[376528677,1754008240557,-460.0,0.00019452,2]
[376528679,1754008240567,-460.0,0.00019452,2]
[376528680,1754008240576,-460.0,0.00019452,2]
[376528682,1754008240585,-460.0,0.00019452,2]
[376528684,1754008240594,-460.0,0.00019452,2]
[376528686,1754008240603,-460.0,0.00019452,2]
[376528688,1754008240612,-460.0,0.00019452,2]
[376528690,1754008240621,-460.0,0.00019452,2]
[376528692,1754008240630,-853.59,0.00019452,2]
[376528694,1754008240639,-460.0,0.00019452,2]
[376528697,1754008240648,-460.0,0.00019452,2]
[376528698,1754008240658,-460.0,0.00019452,2]
[376528700,1754008240667,-460.0,0.00019452,2]
[376528702,1754008240676,-460.0,0.00019452,2]
[376528704,1754008240685,-460.0,0.00019452,2]
[376528706,1754008240694,-460.0,0.00019452,2]
[376528709,1754008240703,-460.0,0.00019452,2]
[376528711,1754008240712,-460.0,0.00019452,2]
[376528713,1754008240721,-460.0,0.00019452,2]
[376528715,1754008240733,-460.0,0.00019452,2]
[376528717,1754008240741,-65.53199673,0.00019452,2]
[376528719,1754008240756,-394.46800327,0.00019452,2]
[376528721,1754008240765,-460.0,0.00019452,2]
[376528723,1754008240774,-460.0,0.00019452,2]
[376528725,1754008240784,-460.0,0.00019452,2]
[376528727,1754008240793,-589.47,0.00019452,2]
[376528729,1754008240802,-215.92478924,0.00019452,2]
[376528731,1754008240811,-191.30406378,0.00019452,2]
[376528733,1754008240820,-460.0,0.00019452,2]
[376528735,1754008240830,-200.0,0.00019459,15]
[376528737,1754008240839,-200.0,0.00019459,15]
[376528739,1754008240848,-200.0,0.00019459,15]
[376528741,1754008240858,-200.0,0.00019459,15]
[376528743,1754008240867,-558.23,0.000195,2]
[376528745,1754008240876,-460.0,0.00019726,2]
[376528747,1754008240885,-460.0,0.00019726,2]
[376528749,1754008240895,-460.0,0.00019726,2]
[376528751,1754008240904,-460.0,0.00019726,2]
[376528753,1754008240913,-460.0,0.00019726,2]
[376528755,1754008240922,-460.0,0.00019726,2]
[376528757,1754008240931,-460.0,0.00019726,2]
[376528759,1754008240940,-460.0,0.00019726,2]
[376528761,1754008240949,-460.0,0.00019726,2]
[376528763,1754008240958,-460.0,0.00019726,2]
[376528765,1754008240967,-460.0,0.00019726,2]
[376528767,1754008240979,-460.0,0.00019726,2]
[376528769,1754008240988,-525.99228321,0.00019726,2]
[376528771,1754008240997,-460.0,0.00019726,2]
[376528773,1754008241006,-565.16751401,0.00019726,2]
[376528775,1754008241015,-853.59,0.00019726,2]
[376528777,1754008241024,-460.0,0.00019726,2]
[376528779,1754008241033,-460.0,0.00019726,2]
[376528781,1754008241042,-460.0,0.00019726,2]
[376528783,1754008241051,-460.0,0.00019726,2]
[376528785,1754008241061,-460.0,0.00019726,2]
[376528787,1754008241070,-460.0,0.00019726,2]
[376528789,1754008241080,-460.0,0.00019726,2]
[376528791,1754008241089,-460.0,0.00019726,2]
[376528793,1754008241098,-460.0,0.00019726,2]
[376528795,1754008241107,-460.0,0.00019726,2]
[376528797,1754008241115,-460.0,0.00019726,2]
[376528799,1754008241124,-460.0,0.00019726,2]
[376528801,1754008241133,-460.0,0.00019726,2]
[376528803,1754008241143,-589.47,0.00019726,2]
[376528805,1754008241152,-783.8701438,0.000199,2]
[376528807,1754008241161,-160.0,0.00019978,2]
[376528809,1754008241170,-460.0,0.0002,2]
[376528812,1754008241179,-460.0,0.0002,2]
[376528814,1754008241188,-460.0,0.0002,2]
[376528816,1754008241197,-280.02,0.0002,2]
[376528818,1754008241207,-460.0,0.0002,2]
[376528820,1754008241216,-175.05,0.0002,2]
[376528822,1754008241228,-460.0,0.0002,2]
[376528824,1754008241237,-460.0,0.0002,2]
[376528826,1754008241246,-460.0,0.0002,2]
[376528828,1754008241255,-853.59,0.0002,2]
[376528830,1754008241267,-165.28579326,0.0002,20]
[376528832,1754008241276,-460.0,0.0002,2]
[376528834,1754008241285,-460.0,0.0002,2]
[376528836,1754008241294,-460.0,0.0002,2]
[376528838,1754008241303,-460.0,0.0002,2]
[376528840,1754008241313,-460.0,0.0002,2]
[376528842,1754008241322,-460.0,0.0002,2]
[376528844,1754008241331,-460.0,0.0002,2]
[376528846,1754008241340,-219.07,0.0002,2]
[376528848,1754008241349,-543.12,0.0002,2]
[376528850,1754008241359,-460.0,0.0002,2]
[376528852,1754008241368,-589.47,0.0002,2]
[376528854,1754008241377,-214.99831783,0.00020071,2]
[376528856,1754008241386,-160.0,0.00020071,2]
[376528858,1754008241396,-160.0,0.00020071,2]
[376528860,1754008241405,-160.0,0.00020071,2]
[376528862,1754008241415,-460.682337,0.00020071,2]
[376528864,1754008241424,-186.9976675,0.00020116,2]
[376528866,1754008241433,-783.87014358,0.00020141,2]
[376528868,1754008241442,-213.4,0.0002017,3]
[376528870,1754008241451,-291.585744,0.00020187,2]
[376528872,1754008241460,-460.0,0.00020273,2]
[376528874,1754008241470,-460.0,0.00020273,2]
[376528876,1754008241481,-389.56,0.00020273,2]
[376528877,1754008241490,-460.0,0.00020273,2]
[376528880,1754008241499,-460.0,0.00020273,2]
[376528882,1754008241508,-460.0,0.00020273,2]
[376528883,1754008241517,-853.59,0.00020273,2]
[376528885,1754008241526,-460.0,0.00020273,2]
[376528888,1754008241535,-460.0,0.00020273,2]
[376528890,1754008241545,-460.0,0.00020273,2]
[376528892,1754008241554,-460.0,0.00020273,2]
[376528894,1754008241564,-460.0,0.00020273,2]
[376528896,1754008241573,-516.77,0.00020273,2]
[376528898,1754008241582,-460.0,0.00020273,2]
[376528900,1754008241591,-589.47,0.00020273,2]
[376528902,1754008241600,-783.87014358,0.00020383,3]
[376528904,1754008241609,-260.0,0.00020526,2]
[376528906,1754008241618,-460.0,0.00020547,2]
[376528908,1754008241627,-460.0,0.00020547,2]
[376528910,1754008241636,-460.0,0.00020547,2]
[376528912,1754008241645,-460.0,0.00020547,2]
[376528914,1754008241654,-460.0,0.00020547,2]
[376528916,1754008241663,-853.59,0.00020547,2]
[376528918,1754008241673,-460.0,0.00020547,2]
[376528919,1754008241682,-174.55,0.00020547,2]
[376528921,1754008241691,-460.0,0.00020547,2]
[376528924,1754008241701,-460.0,0.00020547,2]
[376528926,1754008241710,-460.0,0.00020547,2]
[376528928,1754008241719,-589.47,0.00020547,2]
[376528929,1754008241731,-213.4,0.000206,3]
[376528931,1754008241740,-783.87014358,0.00020624,3]
[376528933,1754008241749,-420.0,0.00020792,2]
[376528935,1754008241759,-2030.296672,0.00020803,2]
[376528937,1754008241768,-151.0,0.00020803,2]
[376528939,1754008241778,-151.0,0.00020803,2]
[376528941,1754008241787,-151.0,0.00020803,2]
[376528943,1754008241796,-151.0,0.00020803,2]
[376528945,1754008241805,-151.0,0.00020803,2]
[376528947,1754008241814,-151.0,0.00020803,2]
[376528949,1754008241824,-151.0,0.00020803,2]
[376528951,1754008241833,-151.0,0.00020803,2]
[376528953,1754008241843,-151.0,0.00020803,2]
[376528955,1754008241851,-151.0,0.00020803,2]
[376528957,1754008241860,-151.0,0.00020803,2]
[376528959,1754008241869,-151.0,0.00020803,2]
[376528961,1754008241879,-151.0,0.00020803,2]
[376528963,1754008241888,-151.0,0.00020803,2]
[376528965,1754008241898,-151.0,0.00020803,2]
[376528967,1754008241907,-151.0,0.00020803,2]
[376528969,1754008241917,-151.0,0.00020803,2]
[376528971,1754008241927,-151.0,0.00020803,2]
[376528973,1754008241936,-151.0,0.00020803,2]
[376528975,1754008241945,-151.0,0.00020803,2]
[376528977,1754008241955,-151.0,0.00020803,2]
[376528979,1754008241964,-163.45993335,0.00020803,2]
[376528981,1754008241973,-151.0,0.00020803,2]
[376528983,1754008241983,-151.0,0.00020803,2]
[376528985,1754008241992,-151.0,0.00020803,2]
[376528987,1754008242001,-460.0,0.00020821,2]
[376528989,1754008242010,-203.78,0.00020821,2]
[376528991,1754008242019,-171.26882026,0.00020821,2]
[376528994,1754008242032,-288.73117974,0.00020821,2]
[376528996,1754008242040,-49.41623426,0.00020821,2]
[376528998,1754008242052,-410.58376574,0.00020821,2]
[376529000,1754008242061,-117.49921915,0.00020821,2]
[376529002,1754008242071,-34.20078085,0.00020821,2]
[376529004,1754008242081,-853.59,0.00020821,2]
[376529006,1754008242090,-412.20921987,0.00020821,2]
[376529011,1754008242120,-460.0,0.00019178,2]
[376529013,1754008242129,-47.79078013,0.00020821,2]
[376529015,1754008242138,-460.0,0.00020821,2]
[376529017,1754008242147,-460.0,0.00020821,2]
[376529019,1754008242156,-460.0,0.00020821,2]
[376529021,1754008242165,-589.47,0.00020821,2]
[376529023,1754008242174,-1217.10609261,0.00020858,2]
[376529025,1754008242185,-888.31155625,0.00020858,2]
[376529027,1754008242194,-783.87014358,0.00020866,4]
[376529029,1754008242203,-1959.64670696,0.00020913,2]
[376529031,1754008242213,-213.4,0.0002103,4]
[376529033,1754008242222,-500.0,0.00021064,2]
[376529035,1754008242235,-254.77159321,0.00021074,2]
[376529037,1754008242246,-105.22840679,0.00021074,2]
[376529039,1754008242255,-460.0,0.00021095,2]
[376529041,1754008242268,-460.0,0.00021095,2]
[376529043,1754008242277,-460.0,0.00021095,2]
[376529045,1754008242287,-853.59,0.00021095,2]
[376529047,1754008242298,-460.0,0.00021095,2]
[376529050,1754008242307,-426.8,0.00021095,2]
[376529052,1754008242316,-460.0,0.00021095,2]
[376529054,1754008242326,-460.0,0.00021095,2]
[376529056,1754008242335,-589.47,0.00021095,2]
[376529058,1754008242345,-783.87014358,0.00021107,4]
[376529060,1754008242354,-186.9976675,0.00021155,2]
[376529062,1754008242363,-238.95509694,0.00021269,2]
[376529064,1754008242371,-783.87014358,0.00021348,5]
[376529066,1754008242382,-200.0,0.00021367,15]
[376529068,1754008242391,-200.0,0.00021367,15]
[376529070,1754008242400,-200.0,0.00021367,15]
[376529072,1754008242409,-200.0,0.00021367,15]
[376529074,1754008242418,-320.0,0.00021367,15]
[376529076,1754008242427,-460.0,0.00021369,2]
[376529078,1754008242436,-460.0,0.00021369,2]
[376529080,1754008242446,-460.0,0.00021369,2]
[376529082,1754008242455,-853.59,0.00021369,2]
[376529084,1754008242464,-609.88,0.00021369,2]
[376529086,1754008242473,-365.96,0.00021369,2]
[376529088,1754008242488,-460.0,0.00021369,2]
[376529090,1754008242497,-589.47,0.00021369,2]
[376529092,1754008242507,-213.4,0.0002146,4]
[376529094,1754008242516,-783.87014358,0.0002159,5]
[376529096,1754008242526,-460.0,0.00021622,2]
[376529098,1754008242535,-460.0,0.00021643,2]
[376529100,1754008242544,-463.38,0.00021643,2]
[376529102,1754008242553,-460.0,0.00021643,2]
[376529104,1754008242562,-853.59,0.00021643,2]
[376529106,1754008242571,-460.0,0.00021643,2]
[376529108,1754008242580,-589.47,0.00021643,2]
[376529110,1754008242589,-155.013,0.00021683,2]
[376529112,1754008242598,-2200.0,0.00021694,2]
[376529114,1754008242607,-407.0,0.00021754,2]
[376529116,1754008242616,-81636.31348328,0.00021769,2]
[376529118,1754008242625,-500.0,0.00021773,2]
[376529120,1754008242634,-500.0,0.00021773,2]
[376529122,1754008242642,-500.0,0.00021773,2]
[376529124,1754008242652,-783.87014358,0.00021831,6]
[376529126,1754008242662,-213.4,0.0002189,4]
[376529128,1754008242671,-460.0,0.00021917,2]
[376529130,1754008242680,-460.0,0.00021917,2]
[376529132,1754008242689,-853.59,0.00021917,2]
[376529134,1754008242698,-421.90327386,0.00021917,2]
[376529136,1754008242707,-589.47,0.00021917,2]
[376529138,1754008242717,-154.367338,0.00021938,4]
[376529140,1754008242726,-154.367338,0.0002195,4]
[376529142,1754008242737,-156.332006,0.0002195,4]
[376529144,1754008242746,-10739.27274665,0.0002198,2]
[376529146,1754008242755,-1387.08,0.00022,7]
[376529148,1754008242765,-11906.47,0.00022,7]
[376529150,1754008242774,-1006.13,0.00022,2]
[376529152,1754008242783,-783.87014358,0.00022072,6]
[376529154,1754008242792,-238.95509693,0.00022152,2]
[376529156,1754008242802,-518.08378581,0.0002217,2]
[376529158,1754008242811,-460.0,0.00022191,2]
[376529160,1754008242820,-460.0,0.00022191,2]
[376529162,1754008242831,-853.59,0.00022191,2]
[376529164,1754008242841,-589.47,0.00022191,2]
[376529166,1754008242850,-186.9976675,0.00022193,2]
[376529168,1754008242859,-783.87014358,0.00022314,7]
[376529170,1754008242868,-213.4,0.0002232,4]
[376529172,1754008242878,-1000.0,0.00022321,2]
[376529174,1754008242887,-721.34541957,0.00022321,2]
[376529177,1754008242896,-168.17756401,0.00022384,2]
[376529179,1754008242906,-460.0,0.00022465,2]
[376529181,1754008242915,-460.0,0.00022465,2]
[376529183,1754008242924,-853.59,0.00022465,2]
[376529185,1754008242933,-589.47,0.00022465,2]
[376529187,1754008242942,-1006.13,0.00022555,2]
[376529189,1754008242951,-783.87014358,0.00022555,7]
[376529191,1754008242960,-168.17756401,0.00022658,2]
[376529193,1754008242969,-168.17756401,0.00022658,2]
[376529195,1754008242979,-587.0,0.00022662,2]
[376529197,1754008242988,-460.0,0.00022739,2]
[376529199,1754008242997,-460.0,0.00022739,2]
[376529202,1754008243006,-853.59,0.00022739,2]
[376529204,1754008243015,-589.47,0.00022739,2]
[376529206,1754008243024,-213.4,0.0002275,5]
[376529209,1754008243034,-783.87014358,0.00022797,7]
[376529211,1754008243043,-507.39071748,0.00022868,2]
[376529213,1754008243052,-150.0,0.00023,5]
[376529216,1754008243061,-193.19795492,0.00023,2]
[376529219,1754008243071,-160.0,0.00023,2]
[376529221,1754008243081,-1006.13,0.00023,2]
[376529223,1754008243091,-460.0,0.00023013,2]
[376529225,1754008243100,-460.0,0.00023013,2]
[376529227,1754008243109,-853.59,0.00023013,2]
[376529231,1754008243119,-589.47,0.00023013,2]
[376529234,1754008243128,-238.95509693,0.00023035,2]
[376529236,1754008243137,-783.87014358,0.00023038,8]
[376529239,1754008243146,-213.4,0.0002318,5]
[376529241,1754008243155,-186.9976675,0.00023232,2]
[376529243,1754008243164,-500.0,0.00023256,2]
[376529246,1754008243173,-150.0,0.0002326,2]
[376529249,1754008243183,-783.87014358,0.00023279,8]
[376529251,1754008243192,-460.0,0.00023287,2]
[376529253,1754008243201,-460.0,0.00023287,2]
[376529255,1754008243211,-853.59,0.00023287,2]
[376529257,1754008243221,-589.47,0.00023287,2]
[376529259,1754008243230,-11906.47,0.000233,7]
[376529261,1754008243239,-200.0,0.00023462,15]
[376529263,1754008243249,-200.0,0.00023462,15]
[376529265,1754008243259,-200.0,0.00023462,15]
[376529267,1754008243272,-200.0,0.00023462,15]
[376529270,1754008243281,-200.0,0.00023462,15]
[376529274,1754008243291,-200.0,0.00023462,15]
[376529276,1754008243300,-366.0,0.00023462,15]
[376529277,1754008243310,-783.87014358,0.00023521,9]
[376529282,1754008243320,-460.0,0.00023561,2]
[376529284,1754008243329,-200.0,0.00023561,2]
[376529286,1754008243339,-200.0,0.00023561,2]
[376529288,1754008243349,-322.72,0.00023561,2]
[376529290,1754008243359,-460.0,0.00023561,2]
[376529292,1754008243368,-853.59,0.00023561,2]
[376529294,1754008243378,-589.47,0.00023561,2]
[376529296,1754008243387,-1387.08,0.000236,7]
[376529298,1754008243396,-213.4,0.0002361,5]
[376529300,1754008243405,-1006.13,0.00023666,2]
[376529321,1754008243415,-341.90803835,0.00023715,7]
[376529323,1754008243536,-783.87014358,0.00023762,9]
[376529326,1754008243545,-154.367338,0.00023781,5]
[376529329,1754008243554,-383.88584028,0.00023808,2]
[376529332,1754008243564,-460.0,0.00023835,2]
[376529335,1754008243573,-460.0,0.00023835,2]
[376529338,1754008243582,-853.59,0.00023835,2]
[376529340,1754008243592,-589.47,0.00023835,2]
[376529343,1754008243601,-150.0,0.000239,2]
[376529346,1754008243611,-238.95509693,0.00023917,2]
[376529349,1754008243621,-168.0,0.00023921,2]
[376529352,1754008243630,-154.367338,0.00024,30]
[376529355,1754008243639,-11649.19366327,0.00024,2]
[376529358,1754008243648,-783.87014358,0.00024003,10]
[376529361,1754008243657,-168.0,0.00024011,2]
[376529364,1754008243667,-213.4,0.0002404,6]
[376529367,1754008243676,-291.94891383,0.00024109,2]
[376529370,1754008243685,-460.0,0.00024109,2]
[376529373,1754008243694,-853.59,0.00024109,2]
[376529376,1754008243704,-589.47,0.00024109,2]
[376529378,1754008243714,-238.81049058,0.00024152,2]
[376529380,1754008243723,-168.0,0.00024205,2]
[376529382,1754008243733,-1006.13,0.00024221,2]
[376529384,1754008243743,-168.0,0.00024224,2]
[376529386,1754008243753,-168.0,0.00024244,2]
[376529388,1754008243762,-783.87014358,0.00024245,10]
[376529390,1754008243771,-154.367338,0.00024245,10]
[376529392,1754008243780,-186.9976675,0.0002427,2]
[376529394,1754008243789,-168.0,0.00024293,2]
[376529396,1754008243798,-168.0,0.00024301,2]
[376529398,1754008243807,-168.0,0.00024347,2]
[376529401,1754008243817,-491.96588436,0.00024383,2]
[376529403,1754008243826,-853.59,0.00024383,2]
[376529405,1754008243835,-589.47,0.00024383,2]
[376529408,1754008243844,-168.0,0.00024453,2]
[376529411,1754008243853,-213.4,0.0002447,6]
[376529414,1754008243862,-783.87014358,0.00024486,11]
[376529416,1754008243872,-168.0,0.00024499,2]
[376529418,1754008243881,-154.367338,0.000245,5]
[376529420,1754008243891,-154.367338,0.000246,3]
[376529422,1754008243901,-11906.47,0.000246,7]
[376529424,1754008243910,-168.0,0.0002462,2]
[376529426,1754008243919,-500.0,0.00024656,2]
[376529428,1754008243929,-853.59,0.00024657,2]
[376529430,1754008243939,-589.47,0.00024657,2]
[376529432,1754008243948,-200.0,0.00024658,15]
[376529434,1754008243958,-500.0,0.00024658,2]
[376529436,1754008243967,-500.0,0.00024658,2]
[376529438,1754008243977,-154.367338,0.00024686,2]
[376529440,1754008243987,-823.0,0.000247,2]
[376529442,1754008243997,-154.367338,0.00024726,6]
[376529444,1754008244007,-148.50442951,0.00024728,11]
[376529448,1754008244036,-635.36571407,0.00024728,11]
[376529450,1754008244046,-407.0,0.00024754,2]
[376529452,1754008244055,-1006.13,0.00024776,2]
[376529454,1754008244064,-1633.63756007,0.000248,2]
[376529456,1754008244075,-238.95509693,0.000248,2]
[376529458,1754008244088,-500.0,0.0002482,2]
[376529460,1754008244101,-1155.9649899,0.00024822,2]
[376529462,1754008244110,-168.0,0.00024858,2]
[376529464,1754008244119,-500.0,0.00024873,2]
[376529467,1754008244129,-221.87381897,0.00024873,2]
[376529469,1754008244139,-150.0,0.00024873,2]
[376529471,1754008244148,-200.0,0.00024873,2]
[376529473,1754008244158,-151.0,0.000249,7]
[376529475,1754008244169,-2393.53,0.000249,7]
[376529477,1754008244178,-151.0,0.000249,7]
[376529479,1754008244187,-172.0,0.000249,3]
[376529481,1754008244197,-174.72074456,0.000249,3]
[376529482,1754008244206,-1756.0,0.000249,3]
[376529483,1754008244215,-160.0,0.000249,3]
[376529484,1754008244224,-1756.0,0.000249,3]
[376529485,1754008244234,-160.0,0.000249,3]
[376529486,1754008244243,-1756.0,0.000249,3]
[376529487,1754008244260,-160.0,0.000249,3]
[376529488,1754008244279,-1756.0,0.000249,3]
[376529489,1754008244298,-162.30786059,0.000249,3]
[376529490,1754008244313,-1756.0,0.000249,3]
[376529491,1754008244323,-1756.0,0.000249,3]
[376529492,1754008244333,-152.0,0.000249,3]
[376529493,1754008244342,-1756.0,0.000249,3]
[376529494,1754008244351,-152.0,0.000249,3]
[376529495,1754008244360,-152.0,0.000249,3]
[376529496,1754008244369,-1756.0,0.000249,3]
[376529498,1754008244378,-1756.0,0.000249,3]
[376529499,1754008244388,-152.0,0.000249,3]
[376529500,1754008244397,-1756.0,0.000249,3]
[376529502,1754008244406,-152.0,0.000249,3]
[376529504,1754008244415,-1756.0,0.000249,3]
[376529506,1754008244425,-152.0,0.000249,3]
[376529508,1754008244434,-1756.0,0.000249,3]
[376529511,1754008244443,-1756.0,0.000249,3]
[376529513,1754008244453,-152.0,0.000249,3]
[376529515,1754008244462,-154.0,0.000249,3]
[376529517,1754008244471,-1756.0,0.000249,3]
[376529519,1754008244480,-152.0,0.000249,3]
[376529520,1754008244493,-212.2360704,0.000249,3]
[376529523,1754008244502,-152.0,0.000249,3]
[376529525,1754008244511,-1756.0,0.000249,3]
[376529527,1754008244521,-152.0,0.000249,3]
[376529529,1754008244530,-1756.0,0.000249,3]
[376529530,1754008244540,-152.0,0.000249,3]
[376529532,1754008244549,-1756.0,0.000249,3]
[376529535,1754008244562,-152.0,0.000249,3]
[376529537,1754008244571,-1756.0,0.000249,3]
[376529539,1754008244581,-152.0,0.000249,3]
[376529541,1754008244591,-1756.0,0.000249,3]
[376529543,1754008244600,-152.0,0.000249,3]
[376529545,1754008244609,-152.0,0.000249,3]
[376529547,1754008244619,-152.0,0.000249,3]
[376529549,1754008244628,-152.0,0.000249,3]
[376529551,1754008244638,-152.0,0.000249,3]
[376529553,1754008244647,-1756.0,0.000249,3]
[376529555,1754008244658,-1756.0,0.000249,3]
[376529557,1754008244668,-1756.0,0.000249,3]
[376529559,1754008244678,-152.0,0.000249,3]
[376529561,1754008244688,-152.0,0.000249,3]
[376529563,1754008244697,-1756.0,0.000249,3]
[376529565,1754008244707,-1801.96746399,0.000249,3]
[376529567,1754008244716,-325.0,0.000249,3]
[376529569,1754008244726,-152.0,0.000249,3]
[376529571,1754008244738,-325.0,0.000249,3]
[376529573,1754008244747,-152.0,0.000249,3]
[376529575,1754008244757,-325.0,0.000249,3]
[376529577,1754008244766,-152.0,0.000249,3]
[376529579,1754008244775,-325.0,0.000249,3]
[376529581,1754008244784,-152.0,0.000249,3]
[376529583,1754008244793,-325.0,0.000249,3]
[376529585,1754008244802,-325.0,0.000249,3]
[376529587,1754008244811,-325.0,0.000249,3]
[376529589,1754008244821,-325.0,0.000249,3]
[376529591,1754008244830,-152.0,0.000249,3]
[376529593,1754008244839,-152.0,0.000249,3]
[376529595,1754008244848,-152.0,0.000249,3]
[376529597,1754008244857,-325.0,0.000249,3]
[376529599,1754008244867,-152.0,0.000249,3]
[376529601,1754008244876,-325.0,0.000249,3]
[376529603,1754008244886,-152.0,0.000249,3]
[376529605,1754008244901,-326.05611235,0.000249,3]
[376529607,1754008244914,-152.0,0.000249,3]
[376529609,1754008244924,-152.0,0.000249,3]
[376529611,1754008244933,-152.0,0.000249,3]
[376529613,1754008244943,-152.0,0.000249,3]
[376529615,1754008244952,-152.0,0.000249,3]